[Event "*** SCC Grand Prix: Titled Tuesday Blitz"]
[Site "Chess.com"]
[Date "2020.10.06"]
[Round "2"]
[White "jefferyx"]
[Black "jacky72"]
[Result "1-0"]
[WhiteElo "2898"]
[BlackElo "2574"]
[TimeControl "180+1"]
[EndTime "10:17:56 PDT"]
[Termination "jefferyx won by checkmate"]

1. e4 {[%clk 0:03:00.9]} 1... e5 {[%clk 0:02:59.6]} 2. Nf3 {[%clk 0:02:59.9]}
2... Nc6 {[%clk 0:02:59.6]} 3. Nc3 {[%clk 0:03:00.6]} 3... Nf6 {[%clk
0:02:59.3]} 4. d4 {[%clk 0:03:01.3]} 4... exd4 {[%clk 0:03:00.2]} 5. Nxd4 {[%clk
0:03:02.1]} 5... Bb4 {[%clk 0:03:00.9]} 6. Nxc6 {[%clk 0:03:02.8]} 6... bxc6
{[%clk 0:03:00.9]} 7. Bd3 {[%clk 0:03:03.5]} 7... d5 {[%clk 0:03:01.4]} 8. exd5
{[%clk 0:03:04.4]} 8... O-O {[%clk 0:03:01.9]} 9. O-O {[%clk 0:03:05]} 9... cxd5
{[%clk 0:03:02.5]} 10. h3 {[%clk 0:03:04.6]} 10... c6 {[%clk 0:03:01.3]} 11. Qf3
{[%clk 0:03:04.6]} 11... h6 {[%clk 0:03:00]} 12. Bf4 {[%clk 0:03:04.8]} 12...
Bd6 {[%clk 0:02:58.9]} 13. Ne2 {[%clk 0:03:04.9]} 13... Rb8 {[%clk 0:02:59.4]}
14. b3 {[%clk 0:03:05.1]} 14... Re8 {[%clk 0:02:58.5]} 15. Rad1 {[%clk
0:03:04.9]} 15... Qc7 {[%clk 0:02:51.6]} 16. c4 {[%clk 0:03:04.2]} 16... Bxf4
{[%clk 0:02:50.1]} 17. Nxf4 {[%clk 0:03:05.1]} 17... Be6 {[%clk 0:02:43.1]} 18.
Rfe1 {[%clk 0:03:04.8]} 18... Rbd8 {[%clk 0:02:42.9]} 19. cxd5 {[%clk
0:02:50.8]} 19... Bxd5 {[%clk 0:02:36.6]} 20. Qg3 {[%clk 0:02:50.7]} 20... Rxe1+
{[%clk 0:02:24.6]} 21. Rxe1 {[%clk 0:02:51.6]} 21... Re8 {[%clk 0:02:15.9]} 22.
Rxe8+ {[%clk 0:02:40.2]} 22... Nxe8 {[%clk 0:02:16.8]} 23. Qe3 {[%clk
0:02:40.8]} 23... Nf6 {[%clk 0:02:11]} 24. g3 {[%clk 0:02:40.1]} 24... g5 {[%clk
0:02:09.7]} 25. Ne2 {[%clk 0:02:38.1]} 25... Kg7 {[%clk 0:02:04.8]} 26. Nd4
{[%clk 0:02:38]} 26... Qd7 {[%clk 0:01:44.4]} 27. Nf5+ {[%clk 0:02:22]} 27...
Kf8 {[%clk 0:01:44.6]} 28. Qc5+ {[%clk 0:02:06.6]} 28... Ke8 {[%clk 0:01:39]}
29. Qd4 {[%clk 0:01:52.2]} 29... Ng8 {[%clk 0:01:00.9]} 30. Qe5+ {[%clk
0:00:57.5]} 30... Be6 {[%clk 0:00:59.2]} 31. Qb8+ {[%clk 0:00:57.3]} 31... Qd8
{[%clk 0:00:52.8]} 32. Ng7+ {[%clk 0:00:57.5]} 32... Ke7 {[%clk 0:00:52.5]} 33.
Qxa7+ {[%clk 0:00:57.7]} 33... Qd7 {[%clk 0:00:35.9]} 34. Qc5+ {[%clk
0:00:57.5]} 34... Qd6 {[%clk 0:00:29.5]} 35. Qxd6+ {[%clk 0:00:57.7]} 35... Kxd6
{[%clk 0:00:30.4]} 36. Nxe6 {[%clk 0:00:58.6]} 36... fxe6 {[%clk 0:00:30.5]} 37.
Kg2 {[%clk 0:00:59.5]} 37... Nf6 {[%clk 0:00:25.1]} 38. Kf3 {[%clk 0:00:59.6]}
38... e5 {[%clk 0:00:25.5]} 39. a3 {[%clk 0:00:58.6]} 39... Kd5 {[%clk
0:00:24.9]} 40. Ke3 {[%clk 0:00:58.7]} 40... Nd7 {[%clk 0:00:21]} 41. Bc4+
{[%clk 0:00:57.7]} 41... Kd6 {[%clk 0:00:20.6]} 42. b4 {[%clk 0:00:57.1]} 42...
Nb6 {[%clk 0:00:19.4]} 43. Bb3 {[%clk 0:00:56.9]} 43... c5 {[%clk 0:00:16.3]}
44. bxc5+ {[%clk 0:00:57.1]} 44... Kxc5 {[%clk 0:00:17.2]} 45. Ke4 {[%clk
0:00:58]} 45... Kd6 {[%clk 0:00:17.6]} 46. Kf5 {[%clk 0:00:53.4]} 46... Nd7
{[%clk 0:00:17.6]} 47. Kg6 {[%clk 0:00:53.8]} 47... Nc5 {[%clk 0:00:18.2]} 48.
Bc2 {[%clk 0:00:54.2]} 48... Kd5 {[%clk 0:00:11.7]} 49. Kxh6 {[%clk 0:00:52]}
49... Kd4 {[%clk 0:00:11.8]} 50. Kxg5 {[%clk 0:00:51.7]} 50... Kc3 {[%clk
0:00:12.3]} 51. Bf5 {[%clk 0:00:51.3]} 51... Kd2 {[%clk 0:00:12.3]} 52. h4
{[%clk 0:00:51.4]} 52... Ke2 {[%clk 0:00:12.7]} 53. h5 {[%clk 0:00:52]} 53...
Kxf2 {[%clk 0:00:11.4]} 54. h6 {[%clk 0:00:52.5]} 54... e4 {[%clk 0:00:12]} 55.
h7 {[%clk 0:00:52.8]} 55... e3 {[%clk 0:00:12.5]} 56. h8=Q {[%clk 0:00:53.3]}
56... e2 {[%clk 0:00:13.2]} 57. Qd4+ {[%clk 0:00:53.4]} 57... Kf3 {[%clk
0:00:08.5]} 58. Bg4+ {[%clk 0:00:46]} 58... Kxg3 {[%clk 0:00:07.1]} 59. Qg1#
{[%clk 0:00:45.6]} 1-0

[Event "*** SCC Grand Prix: Titled Tuesday Blitz"]
[Site "Chess.com"]
[Date "2020.10.06"]
[Round "2"]
[White "JuliaEfremova"]
[Black "Legendinunknown"]
[Result "0-1"]
[WhiteElo "2337"]
[BlackElo "2637"]
[TimeControl "180+1"]
[EndTime "10:17:57 PDT"]
[Termination "Legendinunknown won by checkmate"]

1. e4 {[%clk 0:03:00.9]} 1... e5 {[%clk 0:02:57.1]} 2. Nf3 {[%clk 0:02:57]} 2...
Nc6 {[%clk 0:02:55.5]} 3. d4 {[%clk 0:02:56.9]} 3... exd4 {[%clk 0:02:54.9]} 4.
Nxd4 {[%clk 0:02:57.8]} 4... Bc5 {[%clk 0:02:55]} 5. Nxc6 {[%clk 0:02:57.4]}
5... bxc6 {[%clk 0:02:54.6]} 6. Bc4 {[%clk 0:02:55.3]} 6... Qf6 {[%clk
0:02:37.1]} 7. O-O {[%clk 0:02:51.9]} 7... Ne7 {[%clk 0:02:35.5]} 8. Nc3 {[%clk
0:02:42]} 8... O-O {[%clk 0:02:32.1]} 9. Na4 {[%clk 0:02:24.9]} 9... Bb6 {[%clk
0:02:21.5]} 10. Nxb6 {[%clk 0:02:12.1]} 10... axb6 {[%clk 0:02:22.4]} 11. c3
{[%clk 0:01:57.9]} 11... d5 {[%clk 0:02:20.5]} 12. exd5 {[%clk 0:01:55.7]} 12...
cxd5 {[%clk 0:02:21.4]} 13. Bxd5 {[%clk 0:01:55.4]} 13... Nxd5 {[%clk
0:02:06.9]} 14. Qxd5 {[%clk 0:01:52.5]} 14... Ra5 {[%clk 0:02:07.3]} 15. Qd4
{[%clk 0:01:34.1]} 15... Qg6 {[%clk 0:02:01.7]} 16. Bf4 {[%clk 0:01:28.6]} 16...
Bb7 {[%clk 0:01:59.6]} 17. Bg3 {[%clk 0:01:26]} 17... f5 {[%clk 0:01:42.6]} 18.
f3 {[%clk 0:01:24.6]} 18... Rd5 {[%clk 0:01:10.5]} 19. Qc4 {[%clk 0:01:23.7]}
19... c6 {[%clk 0:01:03.6]} 20. Rae1 {[%clk 0:01:20.6]} 20... Qf7 {[%clk
0:00:52.3]} 21. Rd1 {[%clk 0:01:17.2]} 21... f4 {[%clk 0:00:49.5]} 22. Bf2
{[%clk 0:01:13]} 22... c5 {[%clk 0:00:37.4]} 23. a3 {[%clk 0:01:08.3]} 23...
Rfd8 {[%clk 0:00:30.1]} 24. Rde1 {[%clk 0:01:01.3]} 24... Rd2 {[%clk 0:00:24.6]}
25. Qxf7+ {[%clk 0:01:01]} 25... Kxf7 {[%clk 0:00:25.5]} 26. Rb1 {[%clk
0:00:59.2]} 26... Rc2 {[%clk 0:00:19]} 27. Rfc1 {[%clk 0:00:56.5]} 27... Rcd2
{[%clk 0:00:17]} 28. b4 {[%clk 0:00:55.5]} 28... Ba6 {[%clk 0:00:14.6]} 29. b5
{[%clk 0:00:53.9]} 29... Bc8 {[%clk 0:00:14]} 30. a4 {[%clk 0:00:50.6]} 30...
Bf5 {[%clk 0:00:14]} 31. Ra1 {[%clk 0:00:50.9]} 31... Rb2 {[%clk 0:00:14.6]} 32.
Rd1 {[%clk 0:00:48.8]} 32... Re8 {[%clk 0:00:13.7]} 33. Re1 {[%clk 0:00:48.5]}
33... Rd8 {[%clk 0:00:13.9]} 34. Rad1 {[%clk 0:00:48.8]} 34... Ra8 {[%clk
0:00:13.7]} 35. Rd6 {[%clk 0:00:46.2]} 35... Rxa4 {[%clk 0:00:13.1]} 36. Bh4
{[%clk 0:00:42]} 36... h6 {[%clk 0:00:07.9]} 37. Rxb6 {[%clk 0:00:31.6]} 37...
Raa2 {[%clk 0:00:07.6]} 38. Rb7+ {[%clk 0:00:24.6]} 38... Kg8 {[%clk 0:00:07.5]}
39. Rb8+ {[%clk 0:00:24.7]} 39... Kh7 {[%clk 0:00:07.9]} 40. b6 {[%clk
0:00:24.7]} 40... Rxg2+ {[%clk 0:00:07.9]} 41. Kf1 {[%clk 0:00:23.5]} 41... Rxh2
{[%clk 0:00:07.8]} 42. Kg1 {[%clk 0:00:18.9]} 42... Rag2+ {[%clk 0:00:07.5]} 43.
Kf1 {[%clk 0:00:19.1]} 43... Bh3 {[%clk 0:00:08.4]} 44. Ree8 {[%clk 0:00:15.9]}
44... Rh1# {[%clk 0:00:08.4]} 0-1

[Event "*** SCC Grand Prix: Titled Tuesday Blitz"]
[Site "Chess.com"]
[Date "2020.10.06"]
[Round "2"]
[White "DanielDardha2005"]
[Black "Kotofeyca"]
[Result "1-0"]
[WhiteElo "2670"]
[BlackElo "2359"]
[TimeControl "180+1"]
[EndTime "10:17:58 PDT"]
[Termination "DanielDardha2005 won on time"]

1. d4 {[%clk 0:03:00.9]} 1... d5 {[%clk 0:02:59.4]} 2. c4 {[%clk 0:03:00.8]}
2... c6 {[%clk 0:03:00]} 3. Nc3 {[%clk 0:03:00.7]} 3... Nf6 {[%clk 0:03:00.5]}
4. Nf3 {[%clk 0:03:01.1]} 4... dxc4 {[%clk 0:03:00.7]} 5. a4 {[%clk 0:02:59.3]}
5... Bg4 {[%clk 0:03:01.1]} 6. Ne5 {[%clk 0:02:56.1]} 6... Bh5 {[%clk
0:03:01.4]} 7. Nxc4 {[%clk 0:02:46.2]} 7... e6 {[%clk 0:03:00.3]} 8. g3 {[%clk
0:02:46]} 8... Na6 {[%clk 0:02:56.7]} 9. Bg2 {[%clk 0:02:43.2]} 9... Nb4 {[%clk
0:02:56.7]} 10. O-O {[%clk 0:02:43.4]} 10... a5 {[%clk 0:02:55.6]} 11. f3 {[%clk
0:02:38.1]} 11... c5 {[%clk 0:02:47.4]} 12. Be3 {[%clk 0:02:30]} 12... Nfd5
{[%clk 0:02:31.5]} 13. Bf2 {[%clk 0:02:26.4]} 13... cxd4 {[%clk 0:02:17.1]} 14.
Bxd4 {[%clk 0:02:11]} 14... Rc8 {[%clk 0:02:12.7]} 15. Ne5 {[%clk 0:01:55.9]}
15... Nxc3 {[%clk 0:01:33.6]} 16. bxc3 {[%clk 0:01:51.3]} 16... Nc6 {[%clk
0:01:32.6]} 17. Nxc6 {[%clk 0:01:50.5]} 17... Rxc6 {[%clk 0:01:11.9]} 18. g4
{[%clk 0:01:50.1]} 18... Bg6 {[%clk 0:01:10.9]} 19. f4 {[%clk 0:01:50.1]} 19...
Rc7 {[%clk 0:00:51.5]} 20. f5 {[%clk 0:01:42.8]} 20... exf5 {[%clk 0:00:48.6]}
21. gxf5 {[%clk 0:01:43.7]} 21... Bh5 {[%clk 0:00:48.6]} 22. f6 {[%clk 0:01:41]}
22... gxf6 {[%clk 0:00:36.1]} 23. Bxf6 {[%clk 0:01:30.5]} 23... Bc5+ {[%clk
0:00:25.7]} 24. Kh1 {[%clk 0:01:27.6]} 24... Qxd1 {[%clk 0:00:25.5]} 25. Raxd1
{[%clk 0:01:27.4]} 25... O-O {[%clk 0:00:26.4]} 26. Bf3 {[%clk 0:01:23.2]} 26...
Bg6 {[%clk 0:00:20.4]} 27. h4 {[%clk 0:01:21.5]} 27... Be7 {[%clk 0:00:19.4]}
28. Be5 {[%clk 0:01:04.5]} 28... Rc5 {[%clk 0:00:17]} 29. Bd4 {[%clk 0:01:04.8]}
29... Rf5 {[%clk 0:00:15.5]} 30. e4 {[%clk 0:01:02.5]} 30... Rf4 {[%clk
0:00:13.3]} 31. h5 {[%clk 0:01:02.4]} 31... Bxe4 {[%clk 0:00:12.9]} 32. Bxe4
{[%clk 0:00:45.5]} 32... Rh4+ {[%clk 0:00:10.2]} 33. Kg2 {[%clk 0:00:45.7]}
33... Rxe4 {[%clk 0:00:10.9]} 34. Kf3 {[%clk 0:00:46.3]} 34... Rxd4 {[%clk
0:00:05.9]} 35. Rxd4 {[%clk 0:00:47.2]} 35... Bf6 {[%clk 0:00:03.9]} 36. Rg1+
{[%clk 0:00:46]} 36... Kh8 {[%clk 0:00:03.9]} 37. Rd7 {[%clk 0:00:46.9]} 37...
Bxc3 {[%clk 0:00:03.4]} 38. Rxb7 {[%clk 0:00:46.4]} 38... Bb4 {[%clk 0:00:03.3]}
39. Ke4 {[%clk 0:00:45.9]} 39... h6 {[%clk 0:00:03.7]} 40. Kf5 {[%clk 0:00:46]}
40... Kh7 {[%clk 0:00:03.9]} 41. Rg3 {[%clk 0:00:45.1]} 41... Bd6 {[%clk
0:00:03.4]} 42. Rd3 {[%clk 0:00:44.4]} 42... Bb4 {[%clk 0:00:03.5]} 43. Kf6
{[%clk 0:00:44]} 43... Bc5 {[%clk 0:00:02.5]} 44. Rxf7+ {[%clk 0:00:43.1]} 44...
Rxf7+ {[%clk 0:00:03.4]} 45. Kxf7 {[%clk 0:00:44]} 45... Bb4 {[%clk 0:00:04]}
46. Rd5 {[%clk 0:00:43.5]} 46... Bc3 {[%clk 0:00:03.3]} 47. Rc5 {[%clk
0:00:41.4]} 47... Bb4 {[%clk 0:00:04.2]} 48. Rc7 {[%clk 0:00:41.3]} 48... Bd2
{[%clk 0:00:04.3]} 49. Kf6+ {[%clk 0:00:41.1]} 49... Kh8 {[%clk 0:00:04.6]} 50.
Kg6 {[%clk 0:00:40.5]} 1-0

[Event "*** SCC Grand Prix: Titled Tuesday Blitz"]
[Site "Chess.com"]
[Date "2020.10.06"]
[Round "2"]
[White "Tactictic"]
[Black "annamaja"]
[Result "1-0"]
[WhiteElo "2439"]
[BlackElo "2245"]
[TimeControl "180+1"]
[EndTime "10:17:58 PDT"]
[Termination "Tactictic won by resignation"]

1. e4 {[%clk 0:03:00.9]} 1... e6 {[%clk 0:02:59.4]} 2. d4 {[%clk 0:03:00]} 2...
d5 {[%clk 0:02:59.8]} 3. Nd2 {[%clk 0:03:00]} 3... Nf6 {[%clk 0:02:59.8]} 4. e5
{[%clk 0:03:00]} 4... Nfd7 {[%clk 0:03:00.4]} 5. Bd3 {[%clk 0:03:00.7]} 5... c5
{[%clk 0:03:00.7]} 6. c3 {[%clk 0:03:01.4]} 6... Nc6 {[%clk 0:03:01.3]} 7. Ne2
{[%clk 0:03:01]} 7... cxd4 {[%clk 0:03:01.6]} 8. cxd4 {[%clk 0:03:00.3]} 8... f6
{[%clk 0:03:02.3]} 9. exf6 {[%clk 0:03:00.5]} 9... Qxf6 {[%clk 0:03:03.2]} 10.
Nf3 {[%clk 0:02:53.8]} 10... h6 {[%clk 0:03:02.7]} 11. Nf4 {[%clk 0:02:38.1]}
11... Bb4+ {[%clk 0:02:57.8]} 12. Kf1 {[%clk 0:02:36.8]} 12... O-O {[%clk
0:02:44.2]} 13. Ng6 {[%clk 0:02:35.3]} 13... Rf7 {[%clk 0:02:39.3]} 14. Be3
{[%clk 0:02:33.6]} 14... e5 {[%clk 0:02:34.3]} 15. dxe5 {[%clk 0:02:18.5]} 15...
Ndxe5 {[%clk 0:02:30.9]} 16. Nfxe5 {[%clk 0:02:06.2]} 16... Nxe5 {[%clk
0:02:29.5]} 17. Bd4 {[%clk 0:01:40.3]} 17... Bd6 {[%clk 0:02:29.4]} 18. Qe2
{[%clk 0:01:33.8]} 18... Bf5 {[%clk 0:01:58.9]} 19. Bxf5 {[%clk 0:00:58.1]}
19... Qxf5 {[%clk 0:01:58.3]} 20. Nxe5 {[%clk 0:00:58.2]} 20... Re8 {[%clk
0:01:39.2]} 21. g4 {[%clk 0:00:37.3]} 21... Qf4 {[%clk 0:01:30.3]} 22. Nd3
{[%clk 0:00:30.7]} 22... Rxe2 {[%clk 0:00:55.9]} 23. Nxf4 {[%clk 0:00:29]} 23...
Re4 {[%clk 0:00:56.5]} 24. Ne2 {[%clk 0:00:28.8]} 24... Rxg4 {[%clk 0:00:50.8]}
25. Rd1 {[%clk 0:00:26.3]} 25... a6 {[%clk 0:00:43.2]} 26. Be3 {[%clk
0:00:19.9]} 26... Re4 {[%clk 0:00:34.3]} 27. Rxd5 {[%clk 0:00:14.3]} 27... Bc7
{[%clk 0:00:30.5]} 28. Rd3 {[%clk 0:00:11.2]} 28... Rb4 {[%clk 0:00:23.7]} 29.
Rb3 {[%clk 0:00:11.1]} 29... Ra4 {[%clk 0:00:21.9]} 30. Nc3 {[%clk 0:00:10.7]}
30... Ra5 {[%clk 0:00:15.4]} 31. Rxb7 {[%clk 0:00:10.4]} 31... Re5 {[%clk
0:00:16]} 32. Ke2 {[%clk 0:00:09.3]} 32... Ref5 {[%clk 0:00:14.4]} 33. Rd1
{[%clk 0:00:08.1]} 33... Kh7 {[%clk 0:00:14.2]} 34. Ne4 {[%clk 0:00:08.1]} 34...
a5 {[%clk 0:00:13.9]} 35. Nd6 {[%clk 0:00:08.4]} 35... Bxd6 {[%clk 0:00:12.5]}
36. Rxf7 {[%clk 0:00:08.6]} 36... Rxf7 {[%clk 0:00:13.4]} 37. Rxd6 {[%clk
0:00:08.9]} 37... Rb7 {[%clk 0:00:14.3]} 38. b3 {[%clk 0:00:08.5]} 38... a4
{[%clk 0:00:13.8]} 39. bxa4 {[%clk 0:00:08.5]} 39... Rb2+ {[%clk 0:00:14.2]} 40.
Kf3 {[%clk 0:00:09.4]} 40... Rxa2 {[%clk 0:00:15.1]} 41. Ra6 {[%clk 0:00:09.9]}
41... Ra3 {[%clk 0:00:15.2]} 42. a5 {[%clk 0:00:10.8]} 42... Ra4 {[%clk
0:00:11.8]} 43. Ra8 {[%clk 0:00:11]} 43... Ra3 {[%clk 0:00:12.3]} 44. a6 {[%clk
0:00:11.5]} 44... Ra4 {[%clk 0:00:13.2]} 45. a7 {[%clk 0:00:12]} 45... Ra3
{[%clk 0:00:13.7]} 46. Rb8 {[%clk 0:00:12.6]} 46... Ra4 {[%clk 0:00:14.6]} 47.
a8=Q {[%clk 0:00:12.5]} 1-0

[Event "*** SCC Grand Prix: Titled Tuesday Blitz"]
[Site "Chess.com"]
[Date "2020.10.06"]
[Round "2"]
[White "teacher4chess"]
[Black "Ural_bogatyr"]
[Result "0-1"]
[WhiteElo "1999"]
[BlackElo "2379"]
[TimeControl "180+1"]
[EndTime "10:17:58 PDT"]
[Termination "Ural_bogatyr won on time"]

1. d4 {[%clk 0:02:59.6]} 1... Nf6 {[%clk 0:02:50.2]} 2. Nf3 {[%clk 0:02:59.2]}
2... d5 {[%clk 0:02:48.9]} 3. c4 {[%clk 0:02:58.6]} 3... c6 {[%clk 0:02:48.8]}
4. e3 {[%clk 0:02:58.8]} 4... e6 {[%clk 0:02:48.6]} 5. Nc3 {[%clk 0:02:58.3]}
5... Nbd7 {[%clk 0:02:47.8]} 6. Qc2 {[%clk 0:02:58]} 6... b6 {[%clk 0:02:45.6]}
7. b3 {[%clk 0:02:41.9]} 7... Bb7 {[%clk 0:02:41.4]} 8. cxd5 {[%clk 0:02:38.7]}
8... exd5 {[%clk 0:02:40.7]} 9. Bb2 {[%clk 0:02:38.6]} 9... Be7 {[%clk
0:02:37.8]} 10. Bd3 {[%clk 0:02:38.3]} 10... O-O {[%clk 0:02:37.4]} 11. O-O
{[%clk 0:02:38.2]} 11... c5 {[%clk 0:02:36.8]} 12. Rad1 {[%clk 0:02:34.9]} 12...
Rc8 {[%clk 0:02:35.5]} 13. Qb1 {[%clk 0:02:34.1]} 13... c4 {[%clk 0:02:32.1]}
14. Bf5 {[%clk 0:02:17.9]} 14... g6 {[%clk 0:02:25.3]} 15. Bh3 {[%clk
0:02:16.9]} 15... Bd6 {[%clk 0:02:15.7]} 16. Nb5 {[%clk 0:02:14.6]} 16... Bb8
{[%clk 0:02:14.4]} 17. Ba3 {[%clk 0:02:10.7]} 17... Re8 {[%clk 0:01:52.8]} 18.
Nd6 {[%clk 0:02:10.3]} 18... Bxd6 {[%clk 0:01:50.3]} 19. Bxd6 {[%clk 0:02:10.2]}
19... Rc6 {[%clk 0:01:47.8]} 20. Ba3 {[%clk 0:01:58.1]} 20... Ba6 {[%clk
0:01:28.4]} 21. Rc1 {[%clk 0:01:25.5]} 21... Rc7 {[%clk 0:01:08]} 22. Rfd1
{[%clk 0:01:08.9]} 22... Ne4 {[%clk 0:01:05.7]} 23. Bxd7 {[%clk 0:00:52.1]}
23... Qxd7 {[%clk 0:01:02.7]} 24. Ne5 {[%clk 0:00:52.3]} 24... Qc8 {[%clk
0:00:57.7]} 25. f3 {[%clk 0:00:46.5]} 25... Nf6 {[%clk 0:00:55.8]} 26. Bd6
{[%clk 0:00:43.3]} 26... Rb7 {[%clk 0:00:47.9]} 27. bxc4 {[%clk 0:00:43.2]}
27... Bxc4 {[%clk 0:00:45.4]} 28. Nxc4 {[%clk 0:00:37.9]} 28... dxc4 {[%clk
0:00:46.3]} 29. e4 {[%clk 0:00:38]} 29... b5 {[%clk 0:00:41.4]} 30. Qb4 {[%clk
0:00:33]} 30... Qd8 {[%clk 0:00:38.1]} 31. Be5 {[%clk 0:00:12.2]} 31... Nd7
{[%clk 0:00:34.9]} 32. f4 {[%clk 0:00:08.8]} 32... Nxe5 {[%clk 0:00:33.2]} 33.
dxe5 {[%clk 0:00:08.3]} 33... Qb6+ {[%clk 0:00:32.9]} 34. Kh1 {[%clk 0:00:07.5]}
34... Qe3 {[%clk 0:00:32.4]} 35. Qd6 {[%clk 0:00:07.1]} 35... Qxe4 {[%clk
0:00:29.4]} 36. Rd4 {[%clk 0:00:03.7]} 36... Qe3 {[%clk 0:00:28]} 37. Rcd1
{[%clk 0:00:04.1]} 37... c3 {[%clk 0:00:27.5]} 38. h3 {[%clk 0:00:03.9]} 38...
c2 {[%clk 0:00:26.8]} 39. Rg1 {[%clk 0:00:00.7]} 39... c1=Q {[%clk 0:00:26.7]}
0-1

[Event "*** SCC Grand Prix: Titled Tuesday Blitz"]
[Site "Chess.com"]
[Date "2020.10.06"]
[Round "2"]
[White "TomiLen"]
[Black "chito89"]
[Result "0-1"]
[WhiteElo "2556"]
[BlackElo "2828"]
[TimeControl "180+1"]
[EndTime "10:18:00 PDT"]
[Termination "chito89 won by resignation"]

1. c4 {[%clk 0:03:00.9]} 1... Nf6 {[%clk 0:02:57.6]} 2. Nc3 {[%clk 0:02:58.5]}
2... e5 {[%clk 0:02:56.5]} 3. Nf3 {[%clk 0:02:56.8]} 3... Nc6 {[%clk 0:02:56]}
4. d3 {[%clk 0:02:56.9]} 4... Bb4 {[%clk 0:02:53.8]} 5. Bd2 {[%clk 0:02:56.1]}
5... Bxc3 {[%clk 0:02:46.4]} 6. Bxc3 {[%clk 0:02:55]} 6... Qe7 {[%clk
0:02:47.3]} 7. e4 {[%clk 0:02:53.8]} 7... d6 {[%clk 0:02:40.4]} 8. g3 {[%clk
0:02:48.5]} 8... Bg4 {[%clk 0:02:37]} 9. Bg2 {[%clk 0:02:47.1]} 9... Nd7 {[%clk
0:02:33.8]} 10. h3 {[%clk 0:02:39.7]} 10... Bxf3 {[%clk 0:02:32.8]} 11. Qxf3
{[%clk 0:02:38]} 11... Nc5 {[%clk 0:02:31]} 12. O-O {[%clk 0:02:37.4]} 12... a5
{[%clk 0:02:29.8]} 13. Qd1 {[%clk 0:02:26.1]} 13... O-O {[%clk 0:02:20.2]} 14.
a3 {[%clk 0:02:04.3]} 14... Nd4 {[%clk 0:02:17.1]} 15. f4 {[%clk 0:01:44.4]}
15... a4 {[%clk 0:02:10.1]} 16. Kh2 {[%clk 0:01:34.5]} 16... b5 {[%clk
0:02:09.2]} 17. fxe5 {[%clk 0:01:19.4]} 17... dxe5 {[%clk 0:02:08.7]} 18. cxb5
{[%clk 0:01:16.7]} 18... Rab8 {[%clk 0:02:08.4]} 19. Bb4 {[%clk 0:01:10.8]}
19... Rxb5 {[%clk 0:01:58.3]} 20. Rc1 {[%clk 0:01:10.9]} 20... Qd6 {[%clk
0:01:54.7]} 21. Rf2 {[%clk 0:00:58.5]} 21... Rd8 {[%clk 0:01:38.8]} 22. Rxc5
{[%clk 0:00:52.6]} 22... Rxc5 {[%clk 0:01:39.7]} 23. Bxc5 {[%clk 0:00:51.1]}
23... Qxc5 {[%clk 0:01:40.1]} 24. Qxa4 {[%clk 0:00:51.1]} 24... h5 {[%clk
0:01:23.7]} 25. Qc4 {[%clk 0:00:47.7]} 25... Qe7 {[%clk 0:01:23.7]} 26. h4
{[%clk 0:00:46.3]} 26... Ne6 {[%clk 0:01:18.8]} 27. Bh3 {[%clk 0:00:42.4]} 27...
Rd4 {[%clk 0:01:18]} 28. Qb5 {[%clk 0:00:41]} 28... Nc5 {[%clk 0:01:16.9]} 29.
b4 {[%clk 0:00:28.8]} 29... Nxd3 {[%clk 0:01:15.8]} 30. Rd2 {[%clk 0:00:25.8]}
30... Qd8 {[%clk 0:01:05.4]} 31. a4 {[%clk 0:00:19.1]} 31... g6 {[%clk
0:00:48.4]} 32. a5 {[%clk 0:00:19]} 32... Nxb4 {[%clk 0:00:48.8]} 33. Rxd4
{[%clk 0:00:17.1]} 33... Qxd4 {[%clk 0:00:49.7]} 34. Qb8+ {[%clk 0:00:13.7]}
34... Kg7 {[%clk 0:00:49.3]} 35. Qxc7 {[%clk 0:00:14.1]} 35... Qf2+ {[%clk
0:00:39.2]} 36. Bg2 {[%clk 0:00:13.9]} 36... Nd3 {[%clk 0:00:40.1]} 37. Qb6
{[%clk 0:00:12.7]} 37... Qe2 {[%clk 0:00:34.6]} 38. Qb5 {[%clk 0:00:12.6]} 38...
Qd2 {[%clk 0:00:33.3]} 39. a6 {[%clk 0:00:12.4]} 39... Ne1 {[%clk 0:00:23.7]}
40. Qf1 {[%clk 0:00:12.3]} 40... Nc2 {[%clk 0:00:24.4]} 41. Kh1 {[%clk
0:00:08.5]} 41... Ne3 {[%clk 0:00:23]} 42. Qf3 {[%clk 0:00:08.4]} 42... Qe1+
{[%clk 0:00:21.9]} 43. Kh2 {[%clk 0:00:07.6]} 43... Ng4+ {[%clk 0:00:22.5]} 44.
Kh3 {[%clk 0:00:08]} 44... Qg1 {[%clk 0:00:22.7]} 0-1